Cogmind - Beta 16 @@@ ROGUE MODE // 2025.10.22 @ 06:20:29 Player: time Result: Destroyed by H-71 Marshal with Heavy Mass Driver Performance ------------- Evolutions (7) 3500 Regions Visited (18) 3600 Robots Destroyed (101) 505 Value Destroyed (3219) 3219 Prototype IDs (10) 200 Alien Tech Used (0) 0 Bonus (117) 117 TOTAL SCORE: 11141 Bonus ------- Follower Combat Kills 271 Friendly Fire -154 Cogmind --------- Core Integrity 0/1300 Matter 173/300 Energy 100/100 System Corruption 3% Temperature Cool (0) Movement Flying (40) Location -3/Research Parts ------- > --- POWER (3) -------- (None) > --- PROPULSION (6) --- Field Propulsion Array Field Propulsion Array Field Propulsion Array > --- UTILITY (8) ------ Advanced Signal Interpreter Improved Terrain Scan Processor Advanced Target Analyzer Improved Transmission Jammer Improved Hacking Suite > --- WEAPON (4) ------- Quantum Rifle > --- INVENTORY (5) ---- Q-thruster Advanced Weight Redist. System Heavy Disruptor Cannon Matter Neutralizer Peak State ------------ > --- POWER ------------ Micro Fission Core Micro Fission Core Micro Fission Core > --- PROPULSION ------- Cooled Cesium-ion Thruster Nuclear Pulse Array Impulse Thruster Impulse Thruster Impulse Thruster > --- UTILITY ---------- Coolant Network Advanced Signal Interpreter 0b10 Decoder Chip [Skirmisher] Advanced Target Analyzer Transmission Jammer Remote Shield Advanced Hacking Suite > --- WEAPON ----------- Quantum Rifle Advanced Datajack CPS Tube Thunder Hammer > --- INVENTORY -------- Improved Sensor Array Improved Propulsion Shielding Quantum Rifle Matter Neutralizer Heavy Missile Launcher [Rating: 134] Favorites ----------- Power Light Nuclear Core Engine Light Ion Engine Power Core Light Nuclear Core Propulsion Carbon-fiber Leg Leg Carbon-fiber Leg Wheel Armored Huge Wheel Hover Unit Gravmag System Flight Unit VTOL Module Utility Small Storage Unit Device ECM Suite Storage Small Storage Unit Processor Salvage Targeting Computer Hackware Advanced Hacking Suite Protection Improved Propulsion Shielding Weapon Gauss Cannon Energy Gun Small Laser Energy Cannon Beam Cannon Ballistic Gun Improved Assault Rifle Ballistic Cannon Gauss Cannon Launcher Improved Grenade Launcher Special Weapon CPS Tube Impact Weapon Thunder Hammer Slashing Weapon Ripper Piercing Weapon Makeshift Spear Special Melee Weapon Advanced Datajack Build | -11 -10 -10 -9 -9 -8 -7 -7 -7 -6 -6 -6 -5 -5 -5 -4 -4 -4 -3 ------- Run | Yrd Mat Min Mat Sto Mat Fac Low Low Fac Ext Cet Fac Upp Upp Fac Upp Upp Res Slots Evolved 14 | . . . 2 . 2 2 . . 2 . . 2 . . 2 . . 2 Power 2 | . . . . . . 1 . . . . . . . . . . . 1 Propulsion 4 | . . . 1 . 1 . . . . . . 1 . . . . . 1 Utility 6 | . . . 1 . 1 . . . 2 . . 1 . . 1 . . . Weapon 2 | . . . . . . 1 . . . . . . . . 1 . . . Parts Attached 147 | 7 . 9 . 18 10 11 21 2 18 9 . 6 2 . 11 5 . 18 Power 24 | 1 . 1 . 2 3 1 4 . 3 3 . 1 1 . 3 . . 1 Engine 10 | 1 . 1 . 2 1 1 . . 2 1 . 1 . . . . . . Core 14 | . . . . . 2 . 4 . 1 2 . . 1 . 3 . . 1 Reactor . | . . . . . . . . . . . . . . . . . . . Propulsion 43 | 2 . 3 . 3 5 5 6 . 6 . . . . . 4 . . 9 Treads . | . . . . . . . . . . . . . . . . . . . Leg 20 | 2 . 3 . 3 5 4 3 . . . . . . . . . . . Wheel 1 | . . . . . . . 1 . . . . . . . . . . . Hover 2 | . . . . . . . . . 2 . . . . . . . . . Flight 20 | . . . . . . 1 2 . 4 . . . . . 4 . . 9 Utility 42 | 2 . 1 . 5 . 3 6 1 6 1 . 5 1 . 2 2 . 7 Device 22 | 1 . 1 . 3 . 3 1 1 1 . . 3 1 . 1 1 . 5 Storage 4 | 1 . . . . . . 2 . . 1 . . . . . . . . Processor 7 | . . . . . . . 1 . 2 . . 1 . . 1 1 . 1 Hackware 3 | . . . . . . . 1 . . . . 1 . . . . . 1 Protection 6 | . . . . 2 . . 1 . 3 . . . . . . . . . Artifact . | . . . . . . . . . . . . . . . . . . . Weapon 38 | 2 . 4 . 8 2 2 5 1 3 5 . . . . 2 3 . 1 Energy Gun 9 | 1 . 2 . 3 . 1 . . . . . . . . . 1 . 1 Energy Cannon 7 | . . 1 . . . . 1 . 2 2 . . . . . 1 . . Ballistic Gun 7 | 1 . . . 4 1 . . . 1 . . . . . . . . . Ballistic Cannon 3 | . . . . . . 1 2 . . . . . . . . . . . Launcher 3 | . . . . 1 1 . . . . 1 . . . . . . . . Special Weapon 2 | . . . . . . . . 1 . . . . . . . 1 . . Impact Weapon 1 | . . . . . . . . . . . . . . . 1 . . . Slashing Weapon 4 | . . 1 . . . . 1 . . 2 . . . . . . . . Piercing Weapon 1 | . . . . . . . 1 . . . . . . . . . . . Special Melee Weapon 1 | . . . . . . . . . . . . . . . 1 . . . Unidentified Prototypes 10 | . . . . 5 . 1 . . 2 . . . . . 1 . . 1 Corrupted Parts 1 | . . . . . . . . . . 1 . . . . . . . . System Corruption 1 | . . . . . . . . . . 1 . . . . . . . . Parts Lost 71 | . . 8 . 5 5 3 17 . 7 4 . . . . 1 . . 21 Power 10 | . . 1 . . 2 . 2 . 1 2 . . . . . . . 2 Propulsion 27 | . . 2 . 2 2 2 7 . 3 . . . . . . . . 9 Utility 18 | . . 2 . 1 . . 4 . 3 . . . . . 1 . . 7 Weapon 16 | . . 3 . 2 1 1 4 . . 2 . . . . . . . 3 Highest Loss Streak 15 | . . 3 . 2 2 3 7 . 4 3 . . . . 1 . . 15 To Critical Strikes 3 | . . 1 . . 1 . 1 . . . . . . . . . . . Average Backups 5 | 2 3 3 3 5 5 7 5 7 5 4 5 4 4 5 4 5 5 4 Power . | . 1 . 1 1 1 1 . 1 . . 1 1 1 1 . 1 1 . Propulsion . | . 1 2 1 . . 1 1 1 . . . . . . . 1 1 . Utility . | . . . . . . . 1 . . . . . . . . . . 1 Weapon 2 | . 1 . 1 2 4 3 1 4 3 3 4 3 3 4 3 3 3 2 Tool/Special . | . . . . . . . . . . . . . . . . . . . Unused Backups 14 | . . . . 6 1 1 1 . 1 1 . . . . 1 . . 2 Power 4 | . . . . 3 . . . . . 1 . . . . . . . . Propulsion 2 | . . . . 1 . . . . . . . . . . . . . 1 Utility 1 | . . . . . . 1 . . . . . . . . . . . . Weapon 7 | . . . . 2 1 . 1 . 1 . . . . . 1 . . 1 Tool/Special . | . . . . . . . . . . . . . . . . . . . Average Slot Usage (%) 83 | . 100 89 77 98 99 94 71 64 63 79 80 73 76 76 76 87 94 56 Engine 5 | . 14 9 11 11 6 6 1 . 2 4 . . . . . . . . Core 4 | . . . . . 2 7 9 7 2 1 6 5 5 5 8 10 10 5 Leg 17 | . 28 27 33 32 35 26 18 . . . . . . . . . . . Flight 8 | . . . . . . . 6 23 20 26 26 23 23 23 21 21 21 15 Device 12 | . 14 9 . 11 27 22 9 3 5 . . 7 17 17 15 13 15 7 Storage 7 | . 14 14 11 11 9 7 8 7 2 5 6 . . . . . . . Processor 5 | . . . . . . . . 7 13 20 20 15 11 11 12 15 15 13 Hackware 1 | . . . . . . . 1 7 . . . 2 5 5 5 5 5 3 Protection 3 | . . . . 8 . . . . 2 13 13 9 5 5 5 5 5 . Energy Gun 5 | . 14 16 11 8 8 7 1 . . . . . . . . . 5 3 Energy Cannon 1 | . . 6 11 1 . . 1 . . . . . . . . . . 1 Ballistic Gun 3 | . 14 1 . 10 7 3 . . 1 . . . . . . . . . Ballistic Cannon 1 | . . . . . . 6 7 . 1 . . . . . . . . . Slashing Weapon 1 | . . 1 . . . . . 7 5 2 6 5 5 5 1 . . . Peak Build Rating 134 | 7 7 9 10 30 32 39 42 30 47 61 51 61 64 59 98 110 110 134 Average Rating 36 | 5 7 6 10 22 28 34 28 28 36 48 51 55 59 59 79 98 110 87 On Entrance 43 | . 7 7 9 10 27 28 39 26 30 47 51 51 59 59 59 91 110 110 Avg Prop Armor Cover (%) 15 | . . . . . 12 . 13 . 7 . . . . . . . . 19 Naked Turns . | . . . . . . . . . . . . . . . . . . . Heaviest Build 45 | 11 11 14 12 23 28 39 45 14 38 29 19 20 22 22 27 31 31 44 Greatest Support 67 | 20 20 30 40 62 65 67 59 14 22 22 22 22 22 22 33 33 33 40 Greatest Overweight (x) 2 | . . 1 . . . 1 1 . 2 1 . . . . . . . 1 Average Overweight (x) . | . . . . . . . . . . . . . . . . . . . Largest Inventory Capacity 8 | 8 8 8 8 8 8 8 8 8 8 5 5 5 5 5 5 5 5 5 Average Capacity 7 | 7 8 8 8 8 8 8 7 8 6 5 5 5 5 5 5 5 5 5 Most Carried 8 | 3 3 7 6 8 8 8 8 8 8 5 5 5 5 5 5 5 5 5 Average Carried 5 | 2 3 4 6 7 5 7 5 7 5 4 5 4 4 5 4 4 5 4 Final Capacity 8 | 8 8 8 8 8 8 8 8 8 5 5 5 5 5 5 5 5 5 5 Final Carried 8 | 3 3 7 6 7 7 8 8 8 5 5 5 5 5 5 5 5 5 5 Class Distribution -------------------- 35% | Mutant 23% | Scavenger-Mutant 17% | Sprinter 9% | Scavenger-Sprinter 4% | Skirmisher 4% | Scavenger-Skirmisher 4% | Scavenger-Gunner Dominant Class ---------------- Mutant | -10/Materials Mutant | -10/Mines Mutant | -9/Materials Scavenger-Mutant | -9/Storage Scavenger-Mutant | -8/Materials Scavenger-Skirmisher | -7/Factory Mutant | -7/Lower Caves Scavenger-Sprinter | -7/Lower Caves Sprinter | -6/Factory Scavenger-Sprinter | -6/Extension Scavenger-Sprinter | -6/Cetus Sprinter | -5/Factory Sprinter | -5/Upper Caves Sprinter | -5/Upper Caves Sprinter | -4/Factory Sprinter | -4/Upper Caves Sprinter | -4/Upper Caves Mutant | -3/Research Resources | -11 -10 -10 -9 -9 -8 -7 -7 -7 -6 -6 -6 -5 -5 -5 -4 -4 -4 -3 ----------- Run | Yrd Mat Min Mat Sto Mat Fac Low Low Fac Ext Cet Fac Upp Upp Fac Upp Upp Res Matter Collected 2902 | 271 . 105 . 503 204 197 627 60 169 375 . 35 . . 46 186 . 124 Remotely . | . . . . . . . . . . . . . . . . . . . Salvage Created 3328 | 198 . 312 . 739 515 112 218 40 182 553 . 35 . . 138 47 . 239 Parts 184 | 17 . 9 . 53 32 4 12 4 8 19 . 2 . . 6 . . 18 Haulers Intercepted 4 | . . . . 2 . . . . 1 . . . . . 1 . . . Recyclers Shooed 2 | . . . . 1 . . . . . 1 . . . . . . . . Parts Field Recycled . | . . . . . . . . . . . . . . . . . . . Retrieved Matter . | . . . . . . . . . . . . . . . . . . . Parts Self-Destructed 15 | . . . . . . . 10 5 . . . . . . . . . . Prevented . | . . . . . . . . . . . . . . . . . . . Parts Restored . | . . . . . . . . . . . . . . . . . . . Kills | -11 -10 -10 -9 -9 -8 -7 -7 -7 -6 -6 -6 -5 -5 -5 -4 -4 -4 -3 ------- Run | Yrd Mat Min Mat Sto Mat Fac Low Low Fac Ext Cet Fac Upp Upp Fac Upp Upp Res Combat Hostiles Destroyed 73 | . . 8 . 18 12 3 9 1 4 7 . . . . . . . 11 Melee 8 | . . 2 . . . . 1 1 3 . . . . . . . . 1 Guns 21 | . . 3 . 14 2 2 . . . . . . . . . . . . Cannons 10 | . . 3 . . . . 5 . 1 1 . . . . . . . . AOE 31 | . . . . 4 10 1 3 . . 5 . . . . . . . 8 Classes Destroyed 16 | 2 . 2 . 4 2 1 3 . . . . . . . 1 1 . . Worker 4 | . . . . 1 2 . . . . . . . . . . . . 1 Builder 3 | . . . . . 3 . . . . . . . . . . . . . Tunneler 7 | 6 . 1 . . . . . . . . . . . . . . . . Hauler 4 | . . . . 2 . . . . 1 . . . . . 1 . . . Recycler 4 | 1 . . . . 2 . . . . 1 . . . . . . . . Operator 1 | . . . . . . . . . . . . . . . 1 . . . Watcher 4 | . . . . 1 1 . . . . 1 . 1 . . . . . . Swarmer 27 | . . 2 . 8 . . 3 . 3 . . . . . . . . 11 Grunt 24 | . . 6 . 3 8 2 1 . . 4 . . . . . . . . Duelist 3 | . . . . . . . 3 . . . . . . . . . . . Sentry 12 | . . . . 7 1 . . . 1 3 . . . . . . . . Hunter 3 | . . . . . 3 . . . . . . . . . . . . . Programmer 2 | . . . . . . 1 . 1 . . . . . . . . . . Samaritan 1 | . . . . . . . . . . . . . . . . 1 . . Thief 1 | . . . . . . . 1 . . . . . . . . . . . Butcher 1 | . . . . . . . . . . 1 . . . . . . . . Mutant 1 | . . . . . . . 1 . . . . . . . . . . . Best Kill Streak 9 | 2 . 2 . 5 7 3 3 1 2 6 . 1 . . 1 . . 9 Combat Bots Only 8 | . . 2 . 5 6 3 3 1 2 5 . . . . . . . 8 Max Kills in Single Turn 5 | 1 . 1 . 4 2 1 1 1 1 3 . 1 . . 1 1 . 5 Gunslinging . | . . . . . . . . . . . . . . . . . . . Exploded 4 | . . . . 4 2 1 1 . . 3 . . . . . . . 4 Melee 1 | . . 1 . . . . 1 1 1 . . . . . . . . 1 Uniques/NPCs Destroyed . | . . . . . . . . . . . . . . . . . . . Combat | -11 -10 -10 -9 -9 -8 -7 -7 -7 -6 -6 -6 -5 -5 -5 -4 -4 -4 -3 -------- Run | Yrd Mat Min Mat Sto Mat Fac Low Low Fac Ext Cet Fac Upp Upp Fac Upp Upp Res Hostile Shots Fired 846 | . . 77 1 81 62 19 139 3 91 48 . 14 8 2 20 . . 281 Missed 318 | . . 13 1 20 25 5 39 1 36 15 . 9 5 1 11 . . 137 Hits 528 | . . 64 . 61 37 14 100 2 55 33 . 5 3 1 9 . . 144 Melee 11 | . . . . . . . 11 . . . . . . . . . . . Projectile 517 | . . 64 . 61 37 14 89 2 55 33 . 5 3 1 9 . . 144 Critical Strikes 17 | . . 2 . 4 4 . 4 . . 1 . . . . . . . 2 Actively Blocked 1 | . . . . . . . . . . 1 . . . . . . . . Damage Taken 9013 | . . 846 . 880 644 261 1960 28 556 448 . 53 38 16 133 . . 3150 Core 2515 | . . 189 . 126 76 29 404 28 185 97 . 18 17 . . . . 1346 Absorbed by Shields 183 | . . . . . . . . . . 34 . 20 14 6 40 . . 69 Redirected to Shielding 153 | . . . . . . . . . . 51 . 7 . 10 43 . . 42 Ignored by Resistances 59 | . . . . . . . . . . . . . . . . . . 59 Regen/Repaired (Parts) 162 | . . . . . . 107 . . . . . 55 . . . . . . Core Remaining (%) 71 | 100 . 24 . 68 86 . . 34 . . 66 . . 96 . . 100 . Volleys Fired 201 | 12 . 39 . 51 26 12 35 . 4 17 . . . . . . . 5 Largest 3 | 2 . 2 . 2 2 3 3 . 3 3 . . . . . . . 3 Hottest 199 | 60 . 110 . 100 108 132 139 . 108 105 . . . . . . . 199 Shots Fired 348 | 24 . 66 . 98 47 18 52 . 10 24 . . . . . . . 9 Gun 235 | 24 . 52 . 91 31 12 16 . 4 . . . . . . . . 5 Cannon 73 | . . 14 . 3 . 5 33 . 6 11 . . . . . . . 1 Launcher 32 | . . . . 4 16 1 3 . . 6 . . . . . . . 2 Special 8 | . . . . . . . . . . 7 . . . . . . . 1 Kinetic 147 | 12 . 9 . 57 15 5 39 . 10 . . . . . . . . . Thermal 140 | 12 . 57 . 16 16 12 10 . . 11 . . . . . . . 6 Explosive 32 | . . . . 4 16 1 3 . . 6 . . . . . . . 2 Electromagnetic 21 | . . . . 21 . . . . . . . . . . . . . . Robot Hit Streak 17 | 10 . 9 . 16 7 3 7 . 11 17 . . . . . . . 5 Robot Miss Streak 8 | 1 . 5 . 6 3 5 8 . 3 3 . . . . . . . 1 Penetration Max . | . . . . . . . . . . . . . . . . . . . Secondary Targets . | . . . . . . . . . . . . . . . . . . . Shots Hit Robots 263 | 18 . 47 . 68 27 9 28 1 17 25 . 1 . . 7 2 . 13 Core Hits 179 | 11 . 16 . 36 33 5 26 1 11 19 . 1 . . 2 . . 18 Critical Kills 2 | . . . . . 1 . . . . 1 . . . . . . . . Critical Parts Destroyed 4 | . . . . 2 . . . . . . . . . . . 1 . 1 Critical Strikes 16 | . . 2 . 3 1 1 3 . 1 2 . . . . 1 1 . 1 Burn 5 | . . 2 . 1 . 1 1 . . . . . . . . . . . Meltdown 1 | . . . . . . . . . . 1 . . . . . . . . Destroy 3 | . . . . 2 1 . . . . . . . . . . . . . Blast 2 | . . . . . . . 2 . . . . . . . . . . . Smash 2 | . . . . . . . . . . . . . . . . 1 . 1 Sever 3 | . . . . . . . . . 1 1 . . . . 1 . . . Melee Attacks 78 | . . 5 . 6 . . 2 1 17 12 . 1 . . 7 2 . 25 Impact 21 | . . . . . . . . . . . . . . . . 2 . 19 Slashing 48 | . . 5 . 6 . . . 1 17 12 . 1 . . 6 . . . Piercing 2 | . . . . . . . 2 . . . . . . . . . . . Sneak Attacks 5 | . . . . . . . . . 1 1 . . . . 1 2 . . Combat Hostiles 1 | . . . . . . . . . . 1 . . . . . . . . Follow-up Attacks . | . . . . . . . . . . . . . . . . . . . Damage Inflicted 9176 | 183 . 638 . 1427 1852 270 1045 42 600 1122 . 56 . . 392 192 . 1357 Guns 2260 | 183 . 397 . 1007 288 98 123 . 110 . . . . . . . . 54 Cannons 1127 | . . 159 . 35 . 56 512 . 106 223 . . . . . . . 36 Explosions 3940 | . . . . 350 1558 116 346 . . 531 . . . . . . . 1039 Melee 1729 | . . 67 . . . . . 42 384 368 . 56 . . 392 192 . 228 Ramming 120 | . . 15 . 35 6 . 64 . . . . . . . . . . . Kinetic 1737 | 74 . 49 . 616 150 56 576 . 216 . . . . . . . . . Thermal 1363 | 109 . 507 . 139 138 98 59 . . 223 . . . . . . . 90 Explosive 3940 | . . . . 350 1558 116 346 . . 531 . . . . . . . 1039 Electromagnetic 287 | . . . . 287 . . . . . . . . . . . . . . Impact 420 | . . . . . . . . . . . . . . . . 192 . 228 Slashing 1309 | . . 67 . . . . . 42 384 368 . 56 . . 392 . . . Piercing . | . . . . . . . . . . . . . . . . . . . Highest Corruption 8 | . . . . . . . 8 8 . 1 1 . . . 5 5 5 3 Average Corruption 4 | . . . . . . . 7 8 . 1 1 . . . 4 5 5 2 Corruption Purged . | . . . . . . . . . . . . . . . . . . . Corruption Blocked . | . . . . . . . . . . . . . . . . . . . Effects 23 | . . . . . . . 11 . . 3 . . . . 1 4 . 4 Message Errors 4 | . . . . . . . 2 . . 1 . . . . . . . 1 Matter Fused 7 | . . . . . . . 2 . . 1 . . . . . 3 . 1 Heat Flow Errors 5 | . . . . . . . 2 . . . . . . . 1 . . 2 Energy Discharges 2 | . . . . . . . 1 . . . . . . . . 1 . . Data Loss (minor) 2 | . . . . . . . 2 . . . . . . . . . . . Data Loss (major) 1 | . . . . . . . . . . 1 . . . . . . . . Alerts 2 | . . . . . . . 2 . . . . . . . . . . . Overload Shots . | . . . . . . . . . . . . . . . . . . . Overflow Damage 437 | . . . . . 55 . 52 . 38 9 . . . . 18 131 . 134 Projectiles 5 | . . . . . . . 5 . . . . . . . . . . . Explosions 182 | . . . . . 55 . 47 . . 9 . . . . . . . 71 Melee 250 | . . . . . . . . . 38 . . . . . 18 131 . 63 Knockbacks 4 | . . . . . . 1 3 . . . . . . . . . . . Impact . | . . . . . . . . . . . . . . . . . . . Kinetic 4 | . . . . . . 1 3 . . . . . . . . . . . Secondary . | . . . . . . . . . . . . . . . . . . . Self-Inflicted Damage 460 | . . . . 33 104 56 156 . . 25 . . . . . . . 86 Shots 10 | . . . . 1 2 1 3 . . 1 . . . . . . . 2 Rammed 36 | . . . . . . . 36 . . . . . . . . . . . Targets Rammed 45 | . . 2 . 6 1 . 36 . . . . . . . . . . . Kicked 9 | . . 2 . 6 1 . . . . . . . . . . . . . Crushed . | . . . . . . . . . . . . . . . . . . . Highest Temperature 398 | 40 . 398 . 81 75 387 342 . 41 35 . . . . 149 . . 249 Average Temperature 91 | 18 . 145 . 26 26 186 129 . 13 12 . . . . 62 . . 88 Received Heat Transfer 1501 | . . 447 . 267 180 54 201 . 90 156 . . . . 6 . . 100 Effects 6 | . . 2 . . . 3 1 . . . . . . . . . . . Shutdowns 1 | . . 1 . . . . . . . . . . . . . . . . Energy Bleed 1 | . . 1 . . . . . . . . . . . . . . . . Interference 2 | . . . . . . 2 . . . . . . . . . . . . Short Circuit 2 | . . . . . . 1 1 . . . . . . . . . . . Siege Activations . | . . . . . . . . . . . . . . . . . . . Martial Activations . | . . . . . . . . . . . . . . . . . . . Shielding Activations . | . . . . . . . . . . . . . . . . . . . Robots Disrupted . | . . . . . . . . . . . . . . . . . . . Combat Hostiles . | . . . . . . . . . . . . . . . . . . . Robots Corrupted 2 | . . . . . . . . . . . . . . . . . . 2 Combat Hostiles 2 | . . . . . . . . . . . . . . . . . . 2 Parts Fried 1 | . . . . . . . . . . . . . . . . . . 1 Impact Corruptions 5 | . . . . . . . . . . . . . . . . 1 . 4 Robots Melted 1 | . . . . . . . . . . 1 . . . . . . . . Combat Hostiles 1 | . . . . . . . . . . 1 . . . . . . . . Parts Melted 4 | . . 3 . . . . . . . 1 . . . . . . . . Heat Transferred 3392 | 250 . 1435 . 395 333 296 222 . . 350 . . . . . . . 111 Parts Sabotaged . | . . . . . . . . . . . . . . . . . . . Parts Stolen 1 | . . . . . . . 1 . . . . . . . . . . . Parts Stripped . | . . . . . . . . . . . . . . . . . . . Power Chain Reactions . | . . . . . . . . . . . . . . . . . . . Alert | -11 -10 -10 -9 -9 -8 -7 -7 -7 -6 -6 -6 -5 -5 -5 -4 -4 -4 -3 ------- Run | Yrd Mat Min Mat Sto Mat Fac Low Low Fac Ext Cet Fac Upp Upp Fac Upp Upp Res Maximum Alert Level 1 | . . . . 1 1 . . . . 1 . . . . 1 . . 1 Low Security (%) 86 | 100 100 100 100 62 91 100 . . 100 86 100 100 . . 88 . . 67 Level 1 13 | . . . . 37 8 . . . . 13 . . . . 11 . . 32 Level 2 . | . . . . . . . . . . . . . . . . . . . Level 3 . | . . . . . . . . . . . . . . . . . . . Level 4 . | . . . . . . . . . . . . . . . . . . . Level 5 . | . . . . . . . . . . . . . . . . . . . High Security . | . . . . . . . . . . . . . . . . . . . Max Security . | . . . . . . . . . . . . . . . . . . . Peak Influence 358 | 10 7 96 29 317 358 158 . . 45 248 134 171 . . 206 . . 348 Initial 158 | . 3 . 18 7 121 158 . . 18 11 134 74 . . 50 . . . Average 76 | 1 1 24 16 124 103 57 . . 16 65 134 83 . . 118 . . 117 Influence Increases 3962 | 35 4 312 21 721 498 98 202 60 152 664 . 177 75 . 226 . . 717 Destroy 0b10 Robot/C 1660 | . . 220 20 380 240 60 160 20 80 260 . . . . . . . 220 Destroy 0b10 Robot/NC 140 | 35 . 5 . 25 40 . . . 5 10 . 5 . . 10 . . 5 Destroy Leader 386 | . . 50 . 126 72 10 20 10 22 42 . 2 . . 2 . . 30 Allied During Kill 75 | . . 7 1 2 . . 7 . . 58 . . . . . . . . Trap Triggered on 0b10 10 | . . . . 10 . . . . . . . . . . . . . . Successful Hack 172 | . 4 . . 34 . 5 . . . 43 . 35 . . 24 . . 27 Select Force Hacks 100 | . . . . . . . . . . . . . . . 100 . . . Disable Machine 135 | . . . . 75 15 15 . . . 30 . . . . . . . . Destroy Structure 264 | . . . . 54 131 8 . . . 41 . . . . . . . 30 Partial Spotted 165 | . . . . . . . . . . 60 . 15 . . 15 . . 75 Lose Combat Pursuer 855 | . . 30 . 15 . . 15 30 45 120 . 120 75 . 75 . . 330 Influence Decreases 3622 | 30 9 264 50 452 436 448 202 30 157 449 106 160 127 19 130 176 . 377 Entered New Map 767 | . 2 . 30 12 167 192 . . 12 14 106 60 57 19 30 66 . . Time Decay 2086 | 30 7 214 20 390 219 190 112 30 95 222 . 100 70 . 90 110 . 187 Lost Part 516 | . . 30 . 50 50 30 90 . 50 16 . . . . 10 . . 190 Lost Ally 86 | . . 20 . . . . . . . 66 . . . . . . . . Purge Threat 167 | . . . . . . 36 . . . 131 . . . . . . . . Squads Dispatched 23 | . . . . 2 3 . . . 5 2 . 1 . . 7 . . 3 Investigation 7 | . . . . . 2 . . . 2 1 . . . . 2 . . . Extermination 4 | . . . . . . . . . . . . 1 . . 1 . . 2 Reinforcement 10 | . . . . 1 1 . . . 2 1 . . . . 4 . . 1 Assault . | . . . . . . . . . . . . . . . . . . . Garrison 2 | . . . . 1 . . . . 1 . . . . . . . . . Intercept . | . . . . . . . . . . . . . . . . . . . Searches Triggered . | . . . . . . . . . . . . . . . . . . . Construction Impeded . | . . . . . . . . . . . . . . . . . . . Haulers Reinforced . | . . . . . . . . . . . . . . . . . . . Active Scanning Responses . | . . . . . . . . . . . . . . . . . . . Cargo Convoy Interrupts . | . . . . . . . . . . . . . . . . . . . Stealth | -11 -10 -10 -9 -9 -8 -7 -7 -7 -6 -6 -6 -5 -5 -5 -4 -4 -4 -3 --------- Run | Yrd Mat Min Mat Sto Mat Fac Low Low Fac Ext Cet Fac Upp Upp Fac Upp Upp Res Distress Signals 11 | . . . . 3 3 1 . . . 1 1 1 . . . . . 1 Communications Jammed 7 | . . . . . . . . . . . . . . . . . . 7 Distress Signals 7 | . . . . . . . . . . . . . . . . . . 7 Times Spotted 213 | . 3 12 3 28 22 9 15 5 10 21 4 10 7 1 9 . . 54 Peak Tracking Total 20 | . 5 3 2 5 5 6 7 4 5 6 5 7 4 1 6 . . 20 Tactical Retreats 39 | . . 2 . 1 2 2 4 1 3 5 . 3 4 . 2 . . 10 ECM-based Alert Blocks 13 | . . . . . 3 7 3 . . . . . . . . . . . Traps | -11 -10 -10 -9 -9 -8 -7 -7 -7 -6 -6 -6 -5 -5 -5 -4 -4 -4 -3 ------- Run | Yrd Mat Min Mat Sto Mat Fac Low Low Fac Ext Cet Fac Upp Upp Fac Upp Upp Res Traps Triggered 8 | . . . . 1 1 . . . . 5 . . . . . . . 1 Indirectly . | . . . . . . . . . . . . . . . . . . . Trap Hack Attempts . | . . . . . . . . . . . . . . . . . . . Triggered . | . . . . . . . . . . . . . . . . . . . Disarmed . | . . . . . . . . . . . . . . . . . . . Reprogrammed . | . . . . . . . . . . . . . . . . . . . Reused 1 | . . . . 1 . . . . . . . . . . . . . . Traps Extracted . | . . . . . . . . . . . . . . . . . . . Installed 3 | . . . . 3 . . . . . . . . . . . . . . Triggered 1 | . . . . 1 . . . . . . . . . . . . . . Most Traps Carried 3 | . . 3 3 3 . . . . . . . . . . . . . . Machines | -11 -10 -10 -9 -9 -8 -7 -7 -7 -6 -6 -6 -5 -5 -5 -4 -4 -4 -3 ---------- Run | Yrd Mat Min Mat Sto Mat Fac Low Low Fac Ext Cet Fac Upp Upp Fac Upp Upp Res Machines Disabled 11 | . . . . 5 1 1 1 . . 3 . . . . . . . . Max in Single Turn 1 | . . . . 1 1 1 1 . . . . . . . . . . . Garrison Access 2 | . . . . 1 . 1 . . . . . . . . . . . . Machines Repaired . | . . . . . . . . . . . . . . . . . . . Machines Dismantled . | . . . . . . . . . . . . . . . . . . . Machines Sabotaged . | . . . . . . . . . . . . . . . . . . . Overloaded Fab Kills 2 | . . . . . . . . . . . . . . . 2 . . . Hacking | -11 -10 -10 -9 -9 -8 -7 -7 -7 -6 -6 -6 -5 -5 -5 -4 -4 -4 -3 --------- Run | Yrd Mat Min Mat Sto Mat Fac Low Low Fac Ext Cet Fac Upp Upp Fac Upp Upp Res Machines Accessed 50 | . 1 . 1 12 1 5 . . 4 8 . 4 1 . 5 1 . 7 Terminals 34 | . 1 . 1 9 1 2 . . 3 8 . 1 . . 3 . . 5 Fabricators 3 | . . . . . . . . . . . . 1 . . 2 . . . Repair Stations 3 | . . . . . . 1 . . . . . 1 . . . . . 1 Recycling Units 3 | . . . . 2 . . . . . . . 1 . . . . . . Scanalyzers . | . . . . . . . . . . . . . . . . . . . Garrison Access 5 | . . . . 1 . 2 . . 1 . . . . . . . . 1 Total Hacks 111 | . 3 . 3 34 4 11 . . 7 17 . 8 1 . 8 1 . 14 Successful 47 | . 2 . . 14 1 5 . . 1 7 . 5 1 . 7 1 . 3 Failed 64 | . 1 . 3 20 3 6 . . 6 10 . 3 . . 1 . . 11 Catastrophic 13 | . 1 . . 2 2 3 . . 2 1 . 1 . . . . . 1 Database Lockouts . | . . . . . . . . . . . . . . . . . . . Manual 48 | . 2 . 3 19 6 5 . . 1 3 . 1 . . 4 . . 4 Terminals 83 | . 3 . 3 27 4 5 . . 6 17 . 2 . . 6 . . 10 Fabricators 4 | . . . . . . . . . . . . 2 . . 2 . . . Repair Stations 5 | . . . . . . 2 . . . . . 2 . . . . . 1 Recycling Units 7 | . . . . 5 . . . . . . . 2 . . . . . . Scanalyzers . | . . . . . . . . . . . . . . . . . . . Garrison Access 10 | . . . . 2 . 4 . . 1 . . . . . . . . 3 Terminal Hacks 22 | . 1 . . 6 . 1 . . 1 6 . . 1 . 3 1 . 2 Record 4 | . . . . . . . . . . 1 . . . . 3 . . . Part Schematic 1 | . . . . 1 . . . . . . . . . . . . . . Robot Analysis 1 | . 1 . . . . . . . . . . . . . . . . . Open Door 9 | . . . . 3 . . . . 1 3 . . 1 . . 1 . . Open DSF 1 | . . . . . . . . . . . . . . . . . . 1 Level Access Points 1 | . . . . 1 . . . . . . . . . . . . . . Unreport Threat 2 | . . . . . . 1 . . . 1 . . . . . . . . Locate Traps 1 | . . . . 1 . . . . . . . . . . . . . . Recall Assault 1 | . . . . . . . . . . . . . . . . . . 1 Registered Components 1 | . . . . . . . . . . 1 . . . . . . . . Fabricator Hacks 1 | . . . . . . . . . . . . 1 . . . . . . Build 1 | . . . . . . . . . . . . 1 . . . . . . Repair Station Hacks 4 | . . . . . . 2 . . . . . 2 . . . . . . Scan Component 2 | . . . . . . 1 . . . . . 1 . . . . . . Repair 2 | . . . . . . 1 . . . . . 1 . . . . . . Recycling Unit Hacks 4 | . . . . 3 . . . . . . . 1 . . . . . . Report Inventory 3 | . . . . 2 . . . . . . . 1 . . . . . . Retrieve Components 1 | . . . . 1 . . . . . . . . . . . . . . Scanalyzer . | . . . . . . . . . . . . . . . . . . . Garrison Access Hacks 2 | . . . . 1 . 1 . . . . . . . . . . . . Seal Access 2 | . . . . 1 . 1 . . . . . . . . . . . . Unauthorized Hacks 14 | . 1 . . 4 1 1 . . . 1 . 1 . . 4 . . 1 Terminals 12 | . 1 . . 4 1 1 . . . 1 . 1 . . 2 . . 1 Botnet 12 | . 1 . . 4 1 1 . . . 1 . 1 . . 2 . . 1 Fabricators 2 | . . . . . . . . . . . . . . . 2 . . . Overload 2 | . . . . . . . . . . . . . . . 2 . . . Repair Stations . | . . . . . . . . . . . . . . . . . . . Recycling Units . | . . . . . . . . . . . . . . . . . . . Scanalyzers . | . . . . . . . . . . . . . . . . . . . Garrison Access . | . . . . . . . . . . . . . . . . . . . Data Cores Recovered . | . . . . . . . . . . . . . . . . . . . Used . | . . . . . . . . . . . . . . . . . . . Hacking Detections 40 | . 1 . 1 9 2 5 . . 3 7 . 3 . . 3 . . 6 Full Trace Events 4 | . . . . . 1 . . . 2 1 . . . . . . . . Feedback Events . | . . . . . . . . . . . . . . . . . . . Feedback Blocked . | . . . . . . . . . . . . . . . . . . . Robot Schematics Acquired . | . . . . . . . . . . . . . . . . . . . Robots Built . | . . . . . . . . . . . . . . . . . . . Authchips . | . . . . . . . . . . . . . . . . . . . Time . | . . . . . . . . . . . . . . . . . . . Total Robot Build Rating . | . . . . . . . . . . . . . . . . . . . Part Schematics Acquired 1 | . . . . 1 . . . . . . . . . . . . . . Parts Built . | . . . . . . . . . . . . . . . . . . . Authchips . | . . . . . . . . . . . . . . . . . . . Time 64 | . . . . . . . . . . . . 64 . . . . . . Total Part Build Rating . | . . . . . . . . . . . . . . . . . . . Part Studies Acquired . | . . . . . . . . . . . . . . . . . . . Parts Repaired 2 | . . . . . . 1 . . . . . 1 . . . . . . Time 82 | . . . . . . 38 . . . . . 44 . . . . . . Parts Recycled . | . . . . . . . . . . . . . . . . . . . Recycled Matter . | . . . . . . . . . . . . . . . . . . . Retrieved Matter . | . . . . . . . . . . . . . . . . . . . Retrieved Components 6 | . . . . 6 . . . . . . . . . . . . . . Parts Scanalyzed . | . . . . . . . . . . . . . . . . . . . Part Schematics Acquired . | . . . . . . . . . . . . . . . . . . . Parts Damaged . | . . . . . . . . . . . . . . . . . . . Bothacking | -11 -10 -10 -9 -9 -8 -7 -7 -7 -6 -6 -6 -5 -5 -5 -4 -4 -4 -3 ------------ Run | Yrd Mat Min Mat Sto Mat Fac Low Low Fac Ext Cet Fac Upp Upp Fac Upp Upp Res Used RIF Installer . | . . . . . . . . . . . . . . . . . . . Robots Hacked 1 | . . . . . . . . . . . . . . . . . . 1 Non-combat 1 | . . . . . . . . . . . . . . . . . . 1 Combat . | . . . . . . . . . . . . . . . . . . . Robot Hacks Applied 1 | . . . . . . . . . . . . . . . . . . 1 parse_system 1 | . . . . . . . . . . . . . . . . . . 1 Relay Couplers Released . | . . . . . . . . . . . . . . . . . . . Fabnet Peak Effective % . | . . . . . . . . . . . . . . . . . . . Robots Rewired 6 | . . . . . . . 3 . . 3 . . . . . . . . Allies Hacked . | . . . . . . . . . . . . . . . . . . . Hacks Repelled . | . . . . . . . . . . . . . . . . . . . Allies | -11 -10 -10 -9 -9 -8 -7 -7 -7 -6 -6 -6 -5 -5 -5 -4 -4 -4 -3 -------- Run | Yrd Mat Min Mat Sto Mat Fac Low Low Fac Ext Cet Fac Upp Upp Fac Upp Upp Res Total Allies 11 | . . 2 . . . . 3 . . 6 . . . . . . . . Largest Group 6 | . . 2 1 1 . . 3 . . 6 . . . . . . . . Highest-Rated Group 299 | . . 46 31 31 . . 90 . . 299 . . . . . . . . Highest-Rated Ally 159 | . . 31 31 31 . . 30 . . 159 . . . . . . . . Total Orders . | . . . . . . . . . . . . . . . . . . . Ally Attacks 56 | . . 7 5 6 . . 3 . . 35 . . . . . . . . Total Damage 1436 | . . 130 84 104 . . 111 . . 1007 . . . . . . . . Kills 13 | . . 3 1 2 . . 1 . . 6 . . . . . . . . Allies Corrupted 1 | . . . . . . . 1 . . . . . . . . . . . Allies Melted 1 | . . . . . . . . . . 1 . . . . . . . . Intel | -11 -10 -10 -9 -9 -8 -7 -7 -7 -6 -6 -6 -5 -5 -5 -4 -4 -4 -3 ------- Run | Yrd Mat Min Mat Sto Mat Fac Low Low Fac Ext Cet Fac Upp Upp Fac Upp Upp Res Active Infowar (turns) 3474 | 5 84 493 . 111 591 554 703 . . . . 60 145 5 180 278 5 260 Sensors 1475 | . . . . . . 331 375 . . . . 60 145 5 180 276 5 98 Seismic 582 | 5 84 493 . . . . . . . . . . . . . . . . Decoding 276 | . . . . . . . . . . . . . . . . 16 5 255 Jamming 608 | . . . . . . . . . . . . 48 21 . 163 278 5 93 ECM 1959 | . . . . 111 591 554 703 . . . . . . . . . . . Robot Analysis Total 1 | . 1 . . . . . . . . . . . . . . . . . Derelict Logs Recovered 3 | . . 1 . . . . 1 1 . . . . . . . . . . Drone Launches . | . . . . . . . . . . . . . . . . . . . Drone Recoveries . | . . . . . . . . . . . . . . . . . . . Decoded 0b10 Intel 8 | . . . . . . . . . . . . . . . . . . 8 Patrols 4 | . . . . . . . . . . . . . . . . . . 4 Reinforcements 2 | . . . . . . . . . . . . . . . . . . 2 Guards 2 | . . . . . . . . . . . . . . . . . . 2 Exploration | -11 -10 -10 -9 -9 -8 -7 -7 -7 -6 -6 -6 -5 -5 -5 -4 -4 -4 -3 ------------- Run | Yrd Mat Min Mat Sto Mat Fac Low Low Fac Ext Cet Fac Upp Upp Fac Upp Upp Res Turns Passed 6430 | 216 84 716 42 991 606 572 1088 63 249 523 15 211 145 5 180 278 5 441 Spaces Moved 6913 | 144 71 450 29 585 165 393 933 187 359 962 56 447 423 17 486 431 17 758 Core 34 | 4 . . . . . . . . . . . . . . . . . 30 Treads . | . . . . . . . . . . . . . . . . . . . Legs 2360 | 140 71 450 29 585 165 393 527 . . . . . . . . . . . Wheels 33 | . . . . . . . 33 . . . . . . . . . . . Hover 10 | . . . . . . . . . 10 . . . . . . . . . Flight 4476 | . . . . . . . 373 187 349 962 56 447 423 17 486 431 17 728 Fastest Speed 26 | 50 120 120 126 120 120 97 29 29 26 27 27 27 27 27 27 29 29 27 Average Speed 62 | 118 120 122 126 124 120 117 92 29 37 27 27 27 27 27 27 29 29 35 Slowest Speed 190 | 120 120 190 126 130 120 190 110 29 179 103 27 27 27 27 34 29 29 114 Overloaded Moves . | . . . . . . . . . . . . . . . . . . . Propulsion Burnouts . | . . . . . . . . . . . . . . . . . . . Robots Hopped 59 | . . . . . . . . . . 20 . . 4 . 9 . . 26 Potential Cave-ins 4 | . . . . . . . . . . 4 . . . . . . . . Cave-ins Triggered . | . . . . . . . . . . . . . . . . . . . Exploration Rate (%) 31 | 5 17 70 4 72 19 10 90 24 11 71 23 11 59 4 17 64 5 27 Regions Visited 18 Branch Regions 10 Pre-discovered Areas 1 | . . 1 . . . . . . . . . . . . . . . . Known Exits Taken 7 | . . . . 1 . . . . . . . 1 1 1 1 1 1 . Unknown Exits Taken 11 | 1 1 1 1 . 1 1 1 1 1 1 1 . . . . . . . Scrap Searched 15 | . . 3 . . . . 7 1 . . . . . . . 4 . . Spaces Dug . | . . . . . . . . . . . . . . . . . . . Terrain Destroyed 320 | . . . . 52 158 10 34 . . 46 . . . . . . . 20 Melee . | . . . . . . . . . . . . . . . . . . . Projectile 8 | . . . . . . . 6 . . 2 . . . . . . . . AOE 312 | . . . . 52 158 10 28 . . 44 . . . . . . . 20 Terrain Rammed . | . . . . . . . . . . . . . . . . . . . Walls Destroyed . | . . . . . . . . . . . . . . . . . . . Machines Disabled . | . . . . . . . . . . . . . . . . . . . Actions | -11 -10 -10 -9 -9 -8 -7 -7 -7 -6 -6 -6 -5 -5 -5 -4 -4 -4 -3 --------- Run | Yrd Mat Min Mat Sto Mat Fac Low Low Fac Ext Cet Fac Upp Upp Fac Upp Upp Res Total 8496 | 165 70 535 34 737 526 489 1110 194 443 1169 55 535 450 16 513 579 16 860 Wait 838 | . . 22 5 24 308 51 38 . 5 94 . 74 24 . . 136 . 57 Move 6791 | 143 70 449 28 584 164 392 932 186 358 926 55 446 414 16 469 430 16 713 Hop 45 | . . . . . . . . . . 15 . . 4 . 7 . . 19 Pick Up 64 | 3 . 7 . 14 6 5 8 2 8 2 . 2 1 . 3 1 . 2 Fast Attach 106 | 7 . 2 . 9 2 8 16 2 12 6 . 6 2 . 12 5 . 17 Attach 62 | . . 5 1 4 6 4 11 . 11 9 . . 1 . 2 1 . 7 Detach 47 | . . . . 4 . 4 7 1 11 9 . 2 1 . 1 2 . 5 Swap 43 | . . 4 . 15 8 4 5 . 4 1 . . . . . . . 2 Drop 91 | . . . . 17 5 9 12 2 13 4 . 4 3 . 12 2 . 8 Fire 201 | 12 . 39 . 51 26 12 35 . 4 17 . . . . . . . 5 Melee 78 | . . 5 . 6 . . 2 1 17 12 . 1 . . 7 2 . 25 Ram 36 | . . . . . . . 36 . . . . . . . . . . . Kick 9 | . . 2 . 6 1 . . . . . . . . . . . . . Crush . | . . . . . . . . . . . . . . . . . . . Escape Stasis 74 | . . . . . . . . . . 74 . . . . . . . . Rewire 8 | . . . . . . . 8 . . . . . . . . . . . Trap 3 | . . . . 3 . . . . . . . . . . . . . . Miscellaneous . | . . . . . . . . . . . . . . . . . . . Route ------- -11/Scrapyard -10/Materials -10/Mines -9/Materials -9/Storage -8/Materials -7/Factory -7/Lower Caves -7/Lower Caves -6/Factory -6/Extension (discovered 2 exits: *Fac / [*Cet]) -6/Cetus -5/Factory -5/Upper Caves -5/Upper Caves -4/Factory -4/Upper Caves -4/Upper Caves -3/Research History --------- Turn | Location | Event 9 | -11/Scrapyard | Discovered new exit (range 16) 217 | -11/Scrapyard | Entered Materials 258 | -10/Materials | Discovered new exit (range 5) 301 | -10/Materials | Entered Mines 306 | -10/Mines | Met a Derelict bent on vengeance 309 | -10/Mines | Build established: Mutant 330 | -10/Mines | Learned location of Storage (-9) 415 | -10/Mines | Lost 3 parts (1p1u1w) 737 | -10/Mines | Core integrity fell below 50% 809 | -10/Mines | Found a hidden stash of uninstalled traps 845 | -10/Mines | Discovered new exit (range 15) 1017 | -10/Mines | Entered Materials 1017 | -9/Materials | Accompanied by 1 ally 1017 | -9/Materials | Evolved 2 slots: Propulsion x1, Utility x1 1021 | -9/Materials | Discovered new exit (range 11) 1022 | -9/Materials | Led the pair of lost Derelicts to an unsafe place 1059 | -9/Materials | Entered Storage 1059 | -9/Storage | Accompanied by 1 ally 1280 | -9/Storage | Garrison activated, responded to threat 1417 | -9/Storage | Build established: Scavenger-Mutant 1547 | -9/Storage | Discovered new exit (range 5) 1865 | -9/Storage | Identified exit to Materials 2015 | -9/Storage | Build established: Mutant 2050 | -9/Storage | Entered Materials 2050 | -8/Materials | Evolved 2 slots: Propulsion x1, Utility x1 2338 | -8/Materials | Build established: Scavenger-Mutant 2626 | -8/Materials | Discovered new exit (range 15) 2656 | -8/Materials | Entered Factory 2656 | -7/Factory | Evolved 2 slots: Power x1, Weapon x1 2965 | -7/Factory | Lost 3 parts (2n1w) 3118 | -7/Factory | Repaired Carbon-fiber Leg 3215 | -7/Factory | Discovered new exit (range 4) 3228 | -7/Factory | Entered Lower Caves 3297 | -7/Lower Caves | Found DCF Scrap (14 items) 3450 | -7/Lower Caves | Attracted the attention of an 0b10 outpost 3513 | -7/Lower Caves | Lost 5 parts (1n1u3w) 3596 | -7/Lower Caves | Attacked by a delusional Derelict stockpiling Unaware 3850 | -7/Lower Caves | Spotted B-75 Beast 3903 | -7/Lower Caves | Lost 3 allies 3909 | -7/Lower Caves | Lost 3 parts (1p1n1u) 3932 | -7/Lower Caves | Core integrity fell below 50% 3990 | -7/Lower Caves | Lost 7 parts (1p4n1u1w) 4017 | -7/Lower Caves | Learned 4 Factory zone layouts 4214 | -7/Lower Caves | Discovered new exit (range 9) 4316 | -7/Lower Caves | Entered another Lower Caves area 4345 | -7/Lower Caves | Encountered a Warlord checkpoint 4353 | -7/Lower Caves | Discovered new exit (range 11) 4355 | -7/Lower Caves | Learned 4 Factory zone layouts 4379 | -7/Lower Caves | Entered Factory 4379 | -6/Factory | Evolved 2 slots: Utility x2 4386 | -6/Factory | Garrison activated, responded to threat 4446 | -6/Factory | Lost 3 parts (1p1n1u) 4579 | -6/Factory | Lost 4 parts (2n2u) 4612 | -6/Factory | Discovered new exit (range 6) 4628 | -6/Factory | Entered Extension 4679 | -6/Extension | Spotted B-75 Beast 4770 | -6/Extension | Rescued A7 4795 | -6/Extension | Rescued a captive Derelict 4800 | -6/Extension | Lost 3 parts (2p1w) 4803 | -6/Extension | Rescued a captive Derelict 5088 | -6/Extension | Spotted B-75 Beast 5140 | -6/Extension | Discovered new exit (range 16) 5140 | -6/Extension | Discovered new exit (range 15) 5151 | -6/Extension | Entered Cetus 5156 | -6/Cetus | Spotted Cetus Guard 5156 | -6/Cetus | Spotted Cetus Guard 5156 | -6/Cetus | Spotted Cetus Guard 5162 | -6/Cetus | Discovered new exit (range 16) 5166 | -6/Cetus | Entered Factory 5166 | -5/Factory | Evolved 2 slots: Propulsion x1, Utility x1 5228 | -5/Factory | Repaired Hvy. Missile Launcher 5346 | -5/Factory | Discovered new exit (range 4) 5377 | -5/Factory | Identified exit to Upper Caves 5377 | -5/Factory | Entered Upper Caves 5379 | -5/Upper Caves | Attracted the attention of an 0b10 checkpoint 5465 | -5/Upper Caves | Build established: Sprinter 5520 | -5/Upper Caves | Discovered new exit (range 11) 5522 | -5/Upper Caves | Identified exit to Upper Caves 5522 | -5/Upper Caves | Entered another Upper Caves area 5526 | -5/Upper Caves | Discovered new exit (range 3) 5527 | -5/Upper Caves | Identified exit to Factory 5527 | -5/Upper Caves | Entered Factory 5527 | -4/Factory | Evolved 2 slots: Utility x1, Weapon x1 5702 | -4/Factory | Discovered new exit (range 16) 5707 | -4/Factory | Identified exit to Upper Caves 5707 | -4/Factory | Entered Upper Caves 5964 | -4/Upper Caves | Discovered new exit (range 4) 5984 | -4/Upper Caves | Identified exit to Upper Caves 5985 | -4/Upper Caves | Entered another Upper Caves area 5986 | -4/Upper Caves | Discovered new exit (range 14) 5990 | -4/Upper Caves | Identified exit to Research 5990 | -4/Upper Caves | Entered Research 5990 | -3/Research | Evolved 2 slots: Power x1, Propulsion x1 6036 | -3/Research | Attached CPS modules to S-43 Plague. 6112 | -3/Research | Lost 6 parts (1p2n2u1w) 6219 | -3/Research | Spotted B-86 Titan 6256 | -3/Research | Core integrity fell below 50% 6267 | -3/Research | Destroyed 8 combat bots 6267 | -3/Research | Core integrity fell below 20% 6287 | -3/Research | Lost 15 parts (1p7n5u2w) 6431 | -3/Research | Destroyed by H-71 Marshal with Heavy Mass Driver Last Messages --------------- 06323_ S-43 Plague destroyed. 06340_ Acquired Imp. Transmission Jammer. 06345_ Door malfunctions. 06346_ ALERT: Potential suspicious activity detected, Programmers report to Research Zone 2F. 06346_ Penetrated by Slug. 06352_ Acquired Imp. Hacking Suite. 06354_ Acquired Field Propulsion Array. 06364_ Connecting with Terminal... >>Recall(Assault) Establishing remote squad link... No tasked assault squads found. 06368_ System corrupted: Heat flow error (+187). 06395_ H-77 Assassin retrieves Drone. 06397_ Slug penetrates Wall. 06397_ Penetrated by Slug. 06399_ Slug penetrates Wall. 06401_ P%FBXBQ SZZ0UF0MQOX& AL5VS99KPF 06411_ Connecting with Garrison Access... 06413_ Acquired Q-thruster. Map ----- +----------------------------------------------------+ | ????????????############### ############## | | ???????????????????????# #????????????? | | ???????????????????????# #????????????? | | ???????????????????????# """ "" #????????????? | | ???????????????????????# """ """ #????????????? | | ???????????????????????# """ R" #????????????? | | ???????????????????????# """ #????????????? | | ???????????????????????# #????????????? | | ???????????????????????# """ #????????????? | | ???????????????????????# """ #????????????? | | ???????????????????????# """ #????????????? | | ???????????????????????# #????????????? | | ???????????????????????# #????????????? | | ?????????????????????????############????????????? | | ?????????????????????????????????????????????????? | | ?????????????????????????????????????????????????? | | ?????????????????????????????????????????????????? | | ?????????????????????????????????????????????????? | | ?????????????????????????????????????????????????? | | ?????????????????????????????????????????????????? | | ?????????????????????????????????????????????????? | | ?????????????????????????????????????????????????? | | ??????????????????###+######+##??????????????????? | | ??????????????????# #########??????????? | | ??????????????????# ????????? | | ??????????????????# %@ ?H??????? | | ??????????????????# ####???????????????? | | ??????????????????# ########??????????????????? | | ??????????????????# #?????????????????????????? | | ???????????######## #?????????????????????????? | | ???????????# #############?????????????? | | ???????????# s # #????????????? | | ???????????# + #??????????### | | ???????????# #""" """?????????????# | | ???????????####/### #""" """?????????????# | | ????????????? ??# #?"" """ ???????????# | | ??????????? ???# #?S #??????????# | | ?????????? ????# #"" =#??????????# | | ?????????? ?????# #"" """?????????????# | | ??????????????????# + """?????????????# | | ??????????######### # """?????????????# | | ??????????? # # #??????????# | | ?????????? # #? #????????????? | | ?????????# """ # #?###+########????????????? | | ?????????# """ # #?# ??????????????????? | | ?????????# """ # #?# #??????????????????? | | ?????????# """ # #?# #??????????????????? | | ?????????# """ + #?# #??????????????????? | | ?????????# # #?# #??????????????????? | | ?????????# # #?# #??????????????????? | +----------------------------------------------------+ Best States ------------- Heat Dissipation 136 Coolant Potential 100 Energy Generation 35 Energy Capacity 640 Matter Stores 300 Matter Capacity 300 Sight Range 16 Robot Scan Range 16 Terrain Scan Density 110 ECM Strength 1 Jamming Range 12 Additional Mass Support 12 Armor Coverage 150 Resistance: KI 20 Propulsion Shielding 66 Evasion (%) 64 Target Analysis 8 Core Analysis 9 Energy Filtering 30 Salvage Targeting 1 Offensive Hacking 14 Defensive Hacking 11 Item Schematics ----------------- Hvy. EM Pulse Gun | -9/Storage | Hacked Robot Schematics ------------------ None Fabricated ------------ Nothing Repaired ---------- Carbon-fiber Leg | 2% | -7/Factory Hvy. Missile Launcher | 35% | -5/Factory Studied --------- None Alien Tech Used ----------------- None Achievements -------------- A Problem For Future Me Explorer Fist Fight Ghost 'Em Heavy Suspicion Overwhelming Resistances Are Futile Ride The Lightning Sprinter That Tickles Throw Away The Key Challenges ------------ None Game ------ Seed PlatingMultitargetingFrame Manual? 0 Play Time 01:47:17 Cumulative 25.2 hours Start 2025.10.22 @ 04:15:18 End 2025.10.22 @ 06:20:29 Sessions 3 Manual Loads 0 Difficulty Rogue Special Mode None Game No. 38 Rogue 15 Adventurer 18 Explorer 5 Win Type - Total 0 Types 0/0/0/0/0/0/0/0/0/0 Lore% 17 Gallery% 36 Achievement% 22 Wizard Run 0 Options --------- Layout 0 ASCII 0 Keyboard 1 Movement Numpad Keybinds 0 Fullscreen 1 Font 18/X11 Map View 76x50 Zoom Use 0% Tactical HUD 1 Map Filters NONE Filters NONE Steam 1 RUN: 5161b002-124f-435d-8e41-1f8d06ec2809